bitfinex/quotes_ETHUSD_20250705
["timestamp","ask_amount","ask_price","bid_price","bid_amount"]
[1751704576457,0.36954717,2520.6,2520.5,1.53046864]
[1751704576648,10.36954717,2520.6,2520.5,0.98120001]
[1751704576863,4.33685654,2520.6,2520.5,0.98120001]
[1751704577537,0.36954717,2520.6,2520.5,0.98120001]
[1751704578057,4.33685654,2520.6,2520.5,0.98120001]
[1751704578262,0.36954717,2520.6,2520.5,0.98120001]
[1751704578765,4.33685654,2520.6,2520.5,0.98120001]
[1751704579463,14.33685654,2520.6,2520.5,0.98120001]
[1751704579669,14.33685654,2520.6,2520.5,0.78360001]
[1751704579959,14.33680689,2520.6,2520.5,0.78360001]
[1751704580327,10.36949752,2520.6,2520.5,0.78360001]
[1751704584478,0.36949752,2520.6,2520.5,5.50188849]
[1751704584648,0.36949752,2520.6,2520.5,5.54156315]
[1751704585277,0.36949752,2520.6,2520.5,5.50188849]
[1751704585574,0.36949752,2520.6,2520.5,1.53442172]
[1751704585777,0.36985652,2520.6,2520.5,0.98120001]
[1751704589960,0.37185652,2520.6,2520.5,0.98120001]
[1751704590476,0.37185652,2520.6,2520.5,0.78360001]
[1751704591177,4.33916589,2520.6,2520.5,0.78360001]
[1751704591775,0.37185652,2520.6,2520.5,0.78360001]
[1751704592082,4.33916589,2520.6,2520.5,0.78360001]
[1751704592391,0.37185652,2520.6,2520.5,1e-08]
[1751704592678,4.33916589,2520.6,2520.5,1e-08]
[1751704594184,14.33916589,2520.6,2520.5,1e-08]
[1751704594394,18.20220975,2520.6,2520.5,1e-08]
[1751704597275,19.00630975,2520.6,2520.5,1e-08]
[1751704597469,19.00669739,2520.6,2520.5,1e-08]
[1751704605065,18.20259739,2520.6,2520.5,1e-08]
[1751704605271,16.29155353,2520.6,2520.5,1e-08]
[1751704606290,16.29141509,2520.6,2520.5,1e-08]
[1751704607087,14.33941509,2520.6,2520.5,1e-08]
[1751704607291,16.29141509,2520.6,2520.5,1e-08]
[1751704613964,17.10181509,2520.6,2520.5,1e-08]
[1751704614160,20.03007387,2520.6,2520.5,1e-08]
[1751704615383,13.96825396,2520.0,2519.9,0.0437276]
[1751704615561,14.33835968,2520.0,2519.9,0.0437276]
[1751704615761,16.28635968,2520.0,2519.9,0.0437276]
[1751704615992,19.1958453,2520.0,2519.9,0.0437276]
[1751704618300,17.2478453,2520.0,2519.9,0.0437276]
[1751704618502,16.28735968,2520.0,2519.9,0.0437276]
[1751704618676,14.33835968,2520.0,2519.9,0.0437276]
[1751704618875,16.28735968,2520.0,2519.9,0.0437276]
[1751704619378,14.33835968,2520.0,2519.9,0.0437276]
[1751704619590,16.28735968,2520.0,2519.9,0.0437276]
[1751704622183,19.11590792,2520.0,2519.9,0.0437276]
[1751704622776,19.94170792,2520.0,2519.9,0.0437276]
[1751704623910,27.97170792,2520.0,2519.9,0.0437276]
[1751704624581,29.10892685,2520.0,2519.9,0.0437276]
[1751704624777,17.99270792,2520.0,2519.9,0.0437276]
[1751704624978,27.97170792,2520.0,2519.9,0.0437276]
[1751704625307,29.16465382,2520.0,2519.9,0.0437276]
[1751704625504,29.71465382,2520.0,2519.9,0.0437276]
[1751704626005,29.71465382,2520.0,2519.9,1e-08]
[1751704626213,29.12743489,2520.0,2519.9,1e-08]
[1751704626521,29.12743489,2520.0,2519.7,0.01]
[1751704626522,15.27776893,2519.8,2519.7,1e-08]
[1751704626700,16.84082055,2519.8,2519.7,1e-08]
[1751704627010,14.72824147,2519.5,2519.4,1e-08]
[1751704627319,54.87529309,2519.5,2519.4,1e-08]
[1751704627505,26.22956612,2519.5,2519.4,1e-08]
[1751704627686,18.47689543,2519.5,2519.4,1e-08]
[1751704628025,28.47189543,2519.5,2519.4,1e-08]
[1751704628606,29.66343769,2519.5,2519.4,1e-08]
[1751704628980,59.66343769,2519.5,2519.4,1e-08]
[1751704629310,59.66343769,2519.5,2519.2,0.01]
[1751704629311,5.27855656,2519.3,2519.2,1e-08]
[1751704629517,34.63125864,2519.3,2519.2,1e-08]
[1751704629803,33.87805864,2519.3,2519.2,1e-08]
[1751704630578,34.46527757,2519.3,2519.2,1e-08]
[1751704630778,35.77447757,2519.3,2519.2,1e-08]
[1751704631008,39.20875278,2519.3,2519.2,1e-08]
[1751704632008,15.30752929,2519.0,2518.9,0.0437276]
[1751704632213,25.70023137,2519.0,2518.9,0.0437276]
[1751704632710,15.67623137,2519.0,2518.9,0.0437276]
[1751704632881,28.18307031,2519.0,2518.9,0.0437276]
[1751704633814,29.37601621,2519.0,2518.9,0.0437276]
[1751704634423,29.37601621,2519.0,2517.9,0.0327874]
[1751704634424,13.97140587,2518.0,2517.9,0.0327874]
[1751704634710,16.28910795,2518.0,2517.9,0.0327874]
[1751704636677,14.34010795,2518.0,2517.9,0.0327874]
[1751704637100,16.29010795,2518.0,2517.9,0.0327874]
[1751704638204,16.48850795,2518.0,2517.9,0.0327874]
[1751704638516,14.53850795,2518.0,2517.9,0.0327874]
[1751704638722,10.56710208,2518.0,2517.9,0.0327874]
[1751704638904,16.48850795,2518.0,2517.9,0.0327874]
[1751704639213,12.51710208,2518.0,2517.9,0.8236874]
[1751704639580,0.36870208,2518.0,2517.9,5.3247904]
[1751704639806,0.36870208,2518.0,2517.9,5.5231904]
[1751704639994,1.95,2518.2,2518.0,3.9712768]
[1751704640580,0.1984,2518.5,2518.1,3.97122668]
[1751704640784,0.1984,2518.5,2518.2,4.76193499]
[1751704640785,0.56508492,2518.5,2518.2,4.76193499]
[1751704640986,2.31668492,2518.4,2518.2,0.9893]
[1751704641187,0.36668492,2518.3,2518.2,4.96039046]
[1751704641404,1.95,2518.4,2518.3,3.9708735]
[1751704641713,2.31683184,2518.4,2518.2,5.85351302]
[1751704641885,0.36683184,2518.3,2518.2,5.85351302]
[1751704642598,0.36683184,2518.3,2518.2,1.88248987]
[1751704642906,0.36683184,2518.3,2518.2,5.85358033]
[1751704644223,1.993,2518.5,2518.3,3.9709251]
[1751704644523,1.993,2518.5,2518.2,5.85351465]
[1751704644824,1.993,2518.5,2518.4,0.1984]
[1751704649826,1.993,2518.5,2518.4,4.16917509]
[1751704650033,0.1984,2518.8,2518.4,4.16917509]
[1751704650034,2.1914,2518.8,2518.5,3.97046676]
[1751704650401,12.1914,2518.8,2518.5,3.97046676]
[1751704650740,1.993,2518.9,2518.6,4.72627906]
[1751704650935,0.36798675,2518.8,2518.7,0.1984]
[1751704651702,0.36798675,2518.8,2518.7,4.16870213]
[1751704651898,0.36798675,2518.8,2518.7,4.20840515]
[1751704652231,0.36798675,2518.8,2518.7,5.03040515]
[1751704652520,0.36798675,2518.8,2518.7,4.99070213]
[1751704652728,0.36798675,2518.8,2518.7,5.93993294]
[1751704655035,0.36798675,2518.8,2518.7,5.97963596]
[1751704656421,0.36998675,2518.8,2518.7,5.97963596]
[1751704657740,0.002,2518.8,2518.7,5.93993294]
[1751704658810,0.37085903,2518.8,2518.7,14.04093294]
[1751704659416,0.002,2518.8,2518.7,14.04093294]
[1751704663160,0.002,2518.8,2518.7,14.59093294]
[1751704664266,0.002,2518.8,2518.7,14.03493294]
[1751704664470,0.002,2518.8,2518.7,14.03393294]
[1751704672367,0.002,2518.8,2518.7,5.93993294]
[1751704672665,0.002,2518.8,2518.7,14.02393294]
[1751704675565,0.002,2518.8,2518.7,5.93993294]
[1751704675743,0.002,2518.8,2518.7,14.02193294]
[1751704676997,0.002,2518.8,2518.7,0.1984]
[1751704677186,0.37128829,2518.8,2518.7,8.2794]
[1751704677648,0.37128829,2518.8,2518.7,0.1984]
[1751704677849,4.3414328,2518.8,2518.7,8.2804]
[1751704678072,5.58129869,2518.8,2518.4,0.001]
[1751704678286,5.58129869,2518.8,2518.6,0.1984]
[1751704678287,4.33966467,2518.7,2518.6,0.1984]
[1751704678890,0.36935136,2518.7,2518.6,0.1984]
[1751704680894,0.36935136,2518.7,2518.6,8.2804]
[1751704683408,4.33965349,2518.7,2518.6,8.2804]
[1751704683582,0.36935136,2518.7,2518.6,8.2804]
[1751704684078,4.33965349,2518.7,2518.6,0.1984]
[1751704684281,5.24861813,2518.7,2518.6,8.2784]
[1751704684478,5.24861813,2518.7,2518.4,0.001]
[1751704684690,4.33989356,2518.6,2518.5,8.078]
[1751704684911,0.36935136,2518.6,2518.4,0.001]
[1751704685207,14.75022813,2518.8,2518.4,4.17017509]
[1751704685208,0.36935136,2518.5,2518.4,4.17017509]
[1751704685507,0.36935136,2518.5,2518.4,0.1994]
[1751704687502,0.36935136,2518.5,2518.4,8.2764]
[1751704688892,0.36937425,2518.5,2518.4,8.2764]
[1751704689679,0.36937425,2518.5,2518.4,12.24717509]
[1751704691611,0.36937425,2518.5,2518.4,8.2764]
[1751704692017,0.36921275,2518.5,2518.4,0.1994]
[1751704692310,0.36921275,2518.5,2518.4,8.2744]
[1751704692707,0.36919814,2518.5,2518.4,8.2744]
[1751704692878,1.17419814,2518.5,2518.4,0.001]
[1751704693079,5.65928684,2518.5,2518.4,0.001]
[1751704693290,5.85768684,2518.5,2518.4,0.001]
[1751704695525,1.88706941,2518.5,2518.4,0.001]
[1751704695725,1.37259814,2518.5,2518.4,0.001]
[1751704695922,0.56759814,2518.5,2518.4,0.001]
[1751704696294,0.1984,2518.5,2518.4,0.001]
[1751704696521,0.56748673,2518.5,2518.4,0.001]
[1751704697793,4.53810416,2518.5,2518.4,0.001]
[1751704698022,6.46944569,2518.5,2518.4,0.001]
[1751704698295,6.46945678,2518.5,2518.4,0.001]
[1751704701340,6.46952556,2518.5,2518.4,0.001]
[1751704704029,2.49890813,2518.5,2518.4,0.001]
[1751704704227,0.5675666,2518.5,2518.4,0.001]
[1751704705031,4.53818403,2518.5,2518.4,0.001]
[1751704706232,4.54018403,2518.5,2518.4,0.001]
[1751704707929,0.3711666,2518.5,2518.4,0.001]
[1751704708434,0.3711666,2518.5,2518.4,5.02028284]
[1751704708637,0.3711666,2518.5,2518.4,5.91940122]
[1751704709406,0.3711666,2518.5,2518.4,5.87969347]
[1751704709638,0.3711666,2518.5,2518.4,1.90891838]
[1751704709824,0.3711666,2518.5,2518.4,0.1994]
[1751704713639,0.3711666,2518.5,2518.4,4.17017509]
[1751704713838,0.37216365,2518.5,2518.4,0.1994]
[1751704716242,0.37216365,2518.5,2518.4,4.17017509]
[1751704718239,0.37216365,2518.5,2518.4,0.1994]
[1751704718552,0.37216365,2518.5,2518.4,4.17017509]
[1751704719419,0.37216365,2518.5,2518.4,6.66982609]
[1751704719838,0.37216365,2518.5,2518.4,6.63011834]
[1751704726247,0.37216365,2518.5,2518.4,14.69111834]
[1751704727610,0.37216365,2518.5,2518.4,1.90184325]
[1751704727827,0.37216365,2518.5,2518.4,12.22917509]
[1751704728231,0.37216365,2518.5,2518.4,8.2584]
[1751704731427,0.37216365,2518.5,2518.4,0.1994]
[1751704735462,4.34278108,2518.5,2518.4,0.1994]
[1751704735758,0.37216365,2518.5,2518.4,0.1994]
[1751704735942,4.34278108,2518.5,2518.4,0.1994]
[1751704736135,5.11998108,2518.5,2518.4,0.1994]
[1751704739569,1.14936365,2518.5,2518.4,0.1994]
[1751704739739,0.37216365,2518.5,2518.4,0.1994]
[1751704742160,0.37216365,2518.5,2518.4,5.02278284]
[1751704742355,0.37216365,2518.5,2518.4,5.92215696]
[1751704742562,0.37230733,2518.5,2518.4,5.92215696]
[1751704742857,0.37230733,2518.5,2518.4,13.97415696]
[1751704743058,0.37230733,2518.5,2518.4,13.93444921]
[1751704744581,0.37234353,2518.5,2518.4,13.93444921]
[1751704745058,0.37234353,2518.5,2518.4,13.93544921]
[1751704746170,0.37234353,2518.5,2518.4,5.88244921]
[1751704746379,0.37234353,2518.5,2518.4,13.94344921]
[1751704748567,0.002,2518.5,2518.4,14.49344921]
[1751704748770,0.002,2518.5,2518.4,24.49344921]
[1751704750876,1e-08,2518.5,2518.4,24.49344921]
[1751704754549,1e-08,2518.5,2518.4,29.23344921]
[1751704758852,1e-08,2518.8,2518.7,13.97030213]
[1751704759054,1e-08,2518.8,2518.7,24.66067524]
[1751704759367,1e-08,2518.8,2518.7,16.80607524]
[1751704759555,1e-08,2518.8,2518.7,24.85807524]
[1751704760554,1e-08,2518.8,2518.7,29.59807524]
[1751704761206,1e-08,2518.8,2518.7,21.54607524]
[1751704761381,1e-08,2518.8,2518.7,29.59707524]
[1751704762400,1e-08,2518.8,2518.7,33.77807524]
[1751704762606,1e-08,2518.8,2518.7,29.59707524]
[1751704763577,1e-08,2518.8,2518.7,21.54607524]
[1751704763777,1e-08,2518.8,2518.7,10.75777524]
[1751704763981,1e-08,2518.8,2518.7,18.80677524]
[1751704765700,1e-08,2518.8,2518.7,10.75777524]
[1751704765906,0.78800001,2518.8,2518.7,18.80677524]
[1751704766284,1e-08,2518.8,2518.7,18.80677524]
[1751704766485,1e-08,2518.8,2518.7,14.06677524]
[1751704769642,1e-08,2518.8,2518.7,8.2454]
[1751704769783,0.369697,2518.8,2518.7,8.2454]
[1751704770379,1e-08,2518.8,2518.7,12.21570213]
[1751704770579,0.369697,2518.8,2518.7,8.2454]
[1751704770778,1e-08,2518.8,2518.7,8.2454]
[1751704771028,0.369697,2518.8,2518.7,8.2454]
[1751704771189,1e-08,2518.8,2518.7,8.2454]
[1751704771388,0.369697,2518.8,2518.7,8.2454]
[1751704771717,1e-08,2518.8,2518.7,8.2454]
[1751704771924,0.369697,2518.8,2518.7,8.2454]
[1751704773920,0.369697,2518.8,2518.7,12.21570213]
[1751704774081,0.369697,2518.8,2518.7,13.91352599]
[1751704776822,0.369697,2518.8,2518.7,13.90794762]
[1751704780741,0.369697,2518.8,2518.7,12.21012376]
[1751704781444,1e-08,2518.8,2518.7,12.99192376]
[1751704783564,0.37016547,2518.8,2518.7,12.20712376]
[1751704787554,0.37020758,2518.8,2518.7,12.20712376]
[1751704789128,1e-08,2518.8,2518.7,4.16312376]
[1751704789328,1e-08,2518.8,2518.7,13.02047979]
[1751704790288,1e-08,2518.8,2518.7,13.01947979]
[1751704795287,0.37089514,2518.8,2518.7,13.01947979]
[1751704805262,0.37089514,2518.8,2518.7,13.85257979]
[1751704808381,0.37089514,2518.8,2518.7,4.97647979]
[1751704808692,0.37089514,2518.8,2518.7,12.19312376]
[1751704810493,0.37089514,2518.8,2518.7,8.22182163]
[1751704810661,0.37089514,2518.8,2518.7,4.16312376]
[1751704810862,0.37089514,2518.8,2518.7,12.19112376]
[1751704813186,1.17799514,2518.8,2518.7,8.22182163]
[1751704813384,6.05993097,2518.8,2518.7,0.19282163]
[1751704813694,6.05993097,2518.8,2518.7,8.22182163]
[1751704814373,3.97030213,2518.7,2518.6,0.001]
[1751704814578,5.14829726,2518.7,2518.6,0.001]
[1751704814793,7.82268434,2518.7,2518.6,0.001]
[1751704817821,19.78068434,2518.7,2518.6,0.001]
[1751704818117,20.36790513,2518.7,2518.6,0.001]
[1751704818826,19.78068434,2518.7,2518.6,0.001]
[1751704820721,15.81038221,2518.7,2518.6,0.001]
[1751704820889,19.78068434,2518.7,2518.6,0.001]
[1751704822923,19.78268434,2518.7,2518.6,0.001]
[1751704827114,20.36990513,2518.7,2518.6,0.001]
[1751704827439,28.9443821,2518.7,2518.6,0.001]
[1751704827625,59.4943821,2518.7,2518.6,1e-08]
[1751704827944,46.47265752,2518.6,2518.5,0.001]
[1751704828152,49.30437799,2518.6,2518.5,0.001]
[1751704828540,49.30275216,2518.6,2518.5,0.001]
[1751704830852,49.30275216,2518.6,2518.4,0.001]
[1751704830853,15.54751743,2518.5,2518.4,0.001]
[1751704831018,24.54300752,2518.5,2518.4,0.001]
[1751704834253,15.95400752,2518.5,2518.4,0.001]
[1751704834452,26.86379884,2518.5,2518.4,0.001]
[1751704834659,18.23757805,2518.5,2518.4,0.001]
[1751704835342,16.27857805,2518.5,2518.4,0.001]
[1751704835550,17.40907805,2518.5,2518.4,0.001]
[1751704835753,15.45007805,2518.5,2518.4,0.001]
[1751704835954,17.40907805,2518.5,2518.4,0.001]
[1751704837228,17.40888214,2518.5,2518.4,0.001]
[1751704839942,17.41088214,2518.5,2518.4,0.001]
[1751704841560,18.16468214,2518.5,2518.4,0.001]
[1751704847358,18.75190293,2518.5,2518.4,0.001]
[1751704849367,26.78490293,2518.5,2518.4,0.001]
[1751704853291,18.75190293,2518.5,2518.4,0.001]
[1751704854581,18.16468214,2518.5,2518.4,0.001]
[1751704857800,16.20568214,2518.5,2518.4,0.001]
[1751704857988,18.16468214,2518.5,2518.4,0.001]
[1751704858698,18.16468214,2518.5,2517.9,0.049642]
[1751704858903,13.97140587,2518.0,2517.9,0.049642]
[1751704859071,14.34047926,2518.0,2517.9,0.049642]
[1751704859568,13.97140587,2518.0,2517.9,0.049642]
[1751704859769,14.34177857,2518.0,2517.9,0.049642]
[1751704861597,14.34173753,2518.0,2517.9,0.049642]
[1751704863895,14.34167682,2518.0,2517.9,0.049642]
[1751704868326,16.17297256,2518.0,2517.9,0.049642]
[1751704870594,14.34167682,2518.0,2517.9,0.049642]
[1751704874224,13.97219463,2517.5,2517.4,0.0435872]
[1751704874393,16.29746558,2517.5,2517.4,0.0435872]
[1751704874593,0.37027095,2517.5,2517.4,0.8707872]
[1751704874841,0.37027095,2517.5,2517.4,1.35512864]
[1751704875044,0.37027095,2517.5,2517.4,4.84313962]
[1751704881108,3.97141202,2518.0,2517.5,3.97212256]
[1751704881312,3.97141202,2518.0,2517.4,4.77008811]
[1751704881313,0.37040955,2517.9,2517.6,3.97202686]
[1751704881529,0.37040955,2517.8,2517.5,3.97207739]
[1751704881724,0.37040955,2517.7,2517.6,3.97203686]
[1751704881930,0.37040955,2517.7,2517.6,4.84623358]
[1751704884138,0.37040955,2517.7,2517.6,5.65083358]
[1751704884331,0.37040955,2517.7,2517.6,5.84923358]
[1751704886947,6.1245544,2518.2,2517.7,3.97180144]
[1751704887148,0.37048246,2518.1,2517.7,3.97180144]
[1751704887350,0.37048246,2518.0,2517.7,3.97180144]
[1751704887550,0.37048246,2517.9,2517.7,3.97180144]
[1751704887748,0.37048246,2517.8,2517.7,3.97180144]
[1751704888121,0.3705285,2517.8,2517.7,3.97180144]
[1751704888444,0.002,2518.5,2518.2,3.9710165]
[1751704888672,0.002,2518.5,2518.2,4.79775549]
[1751704888673,0.37060702,2518.4,2518.2,4.79775549]
[1751704888849,0.37061528,2518.3,2518.2,4.79779046]
[1751704889055,0.37061528,2518.3,2518.2,3.97109046]
[1751704889259,0.002,2518.5,2518.2,5.34779046]
[1751704889432,0.002,2518.5,2518.4,4.79747509]
[1751704889632,0.002,2518.5,2518.4,4.99587509]
[1751704889842,0.002,2518.5,2518.4,5.03558284]
[1751704890330,1e-08,2518.5,2518.4,5.54587509]
[1751704890531,1e-08,2518.7,2518.6,15.34715977]
[1751704890739,1e-08,2518.7,2518.6,26.42322363]
[1751704894965,10.1984,2519.8,2519.1,4.77836172]
[1751704895144,10.1984,2519.8,2519.2,12.01551413]
[1751704895145,4.33731819,2519.7,2519.2,12.01551413]
[1751704895468,3.96875225,2519.7,2519.3,0.1984]
[1751704895631,3.96889345,2519.6,2519.3,0.1984]
[1751704896264,3.96881048,2519.7,2519.3,0.1984]
[1751704897867,3.96890717,2519.6,2519.3,0.1984]
[1751704898929,3.96872643,2519.7,2519.3,0.1984]
[1751704899129,5.38570876,2519.6,2519.2,8.046]
[1751704899356,4.72445587,2519.5,2519.2,0.1984]
[1751704899561,3.96935656,2519.3,2518.9,8.044]
[1751704899760,3.96965315,2519.2,2519.0,0.1984]
[1751704900474,3.96958411,2519.2,2519.0,0.1984]
[1751704901041,3.9696717,2519.1,2519.0,0.1984]
[1751704902876,3.9696717,2519.1,2518.8,8.043]
[1751704903178,3.9696717,2519.1,2518.8,8.2414]
[1751704904089,4.16781562,2519.3,2518.8,8.2414]
[1751704904090,3.96958449,2519.2,2518.8,8.2414]
[1751704904572,4.16782422,2519.3,2518.8,13.5117802]
[1751704904740,14.16767674,2519.4,2519.0,0.1984]
[1751704907381,3.9693577,2519.3,2519.0,0.1984]
[1751704907578,3.96950687,2519.3,2519.0,0.1984]
[1751704907880,0.002,2519.1,2519.0,0.1984]
[1751704916187,0.37164923,2519.1,2519.0,0.1984]
[1751704918986,4.34132093,2519.1,2519.0,0.1984]
[1751704919192,3.96984577,2519.0,2518.7,8.8232]
[1751704919391,0.36964923,2518.9,2518.8,0.1984]
[1751704921294,4.33963612,2518.9,2518.8,0.1984]
[1751704921473,3.97045977,2518.6,2518.5,0.001]
[1751704921666,4.340109,2518.6,2518.5,8.2314]
[1751704921992,4.340109,2518.6,2518.5,0.1994]
[1751704922195,4.340109,2518.6,2518.5,0.001]
[1751704922404,5.24899024,2518.6,2518.5,0.001]
[1751704924280,4.340109,2518.6,2518.5,0.001]
[1751704925618,4.538509,2518.6,2518.5,0.001]
[1751704926706,0.36964923,2518.6,2518.5,0.001]
[1751704926880,6.298109,2518.6,2518.5,0.001]
[1751704928007,5.92845977,2518.6,2518.5,0.001]
[1751704928518,7.69898274,2518.6,2518.5,0.001]
[1751704931404,17.69898274,2518.6,2518.5,0.001]
[1751704936078,3.97136368,2518.1,2517.9,0.237548]
[1751704936592,3.97117174,2518.2,2517.9,0.237548]
[1751704937717,13.97101566,2518.3,2517.9,0.237548]
[1751704938316,3.97110031,2518.2,2517.9,0.237548]
[1751704938512,3.97125663,2518.1,2517.9,0.237548]
[1751704939004,3.9711833,2518.2,2517.9,0.237548]
[1751704940726,13.97102291,2518.3,2517.9,0.237548]
[1751704941093,3.97116836,2518.2,2517.9,0.237548]
[1751704941614,13.97101598,2518.3,2517.9,0.237548]
[1751704941994,15.76520166,2518.3,2517.9,0.237548]
[1751704942203,11.79418568,2518.3,2517.9,0.237548]
[1751704942496,3.97131228,2518.1,2517.9,0.237548]
[1751704943515,3.97131228,2518.1,2517.9,0.238548]
[1751704943714,3.97140587,2518.0,2517.9,0.238548]
[1751704944023,6.72486018,2518.0,2517.9,0.040148]
[1751704947527,7.09436425,2518.0,2517.9,0.040148]
[1751704947731,6.29990994,2518.0,2517.9,0.040148]
[1751704949005,0.36950407,2518.0,2517.9,0.828648]
[1751704952916,4.34090994,2518.0,2517.9,0.828648]
[1751704953231,4.34090994,2518.0,2517.9,0.040148]
[1751704956154,4.3415291,2518.0,2517.9,0.040148]
[1751704956447,6.25063719,2518.0,2517.9,0.040148]
[1751704961152,6.25263719,2518.0,2517.9,0.040148]
[1751704963428,6.25300885,2518.0,2517.9,0.040148]
[1751704964353,16.25300885,2518.0,2517.9,0.040148]
[1751704967958,17.04730885,2518.0,2517.9,0.040148]
[1751704970959,16.25300885,2518.0,2517.9,0.040148]
[1751704972255,18.21200885,2518.0,2517.9,0.040148]
[1751704973859,18.21153129,2518.0,2517.9,0.040148]
[1751704975376,16.3024232,2518.0,2517.9,0.040148]
[1751704975680,12.33101733,2518.0,2517.9,0.040148]
[1751704977972,0.37201733,2518.0,2517.9,0.040148]
[1751704978178,0.37201733,2518.0,2517.9,0.238548]
[1751704978882,4.3434232,2518.0,2517.9,0.040148]
[1751704979178,15.37097983,2518.0,2517.9,0.040148]
[1751704980773,10.37201733,2518.0,2517.9,0.040148]
[1751704981171,12.33101733,2518.0,2517.9,0.040148]
[1751704983283,16.3024232,2518.0,2517.9,0.040148]
[1751704990495,15.93240587,2518.0,2517.9,0.040148]
[1751704990666,16.30267638,2518.0,2517.9,0.040148]
[1751704991383,18.33027027,2518.0,2517.9,0.040148]
[1751704992975,19.10687027,2518.0,2517.9,0.040148]
[1751704993595,19.1069134,2518.0,2517.9,0.040148]
[1751705000920,19.1039134,2518.0,2517.9,0.040148]
[1751705004621,16.29971951,2518.0,2517.9,0.040148]
[1751705008142,14.34371951,2518.0,2517.9,0.040148]
[1751705008438,16.29971951,2518.0,2517.9,0.040148]
[1751705015147,2.32831364,2518.0,2517.9,0.040148]
[1751705015810,6.29971951,2518.0,2517.9,0.040148]
[1751705019120,6.29871951,2518.0,2517.9,0.040148]
[1751705019827,6.29899237,2518.0,2517.9,0.040148]
[1751705020341,16.29899237,2518.0,2517.9,0.040148]
[1751705020517,18.3262178,2518.0,2517.9,0.040148]
[1751705022342,16.29899237,2518.0,2517.9,0.040148]
[1751705023644,15.92840587,2518.0,2517.9,0.040148]
[1751705023843,16.29893248,2518.0,2517.9,0.040148]
[1751705028769,16.29890728,2518.0,2517.9,0.040148]
[1751705030023,24.32990728,2518.0,2517.9,0.040148]
[1751705030224,25.09420728,2518.0,2517.9,0.040148]
[1751705031054,28.0009542,2518.0,2517.9,0.040148]
[1751705031453,28.5509542,2518.0,2517.9,0.040148]
[1751705032653,28.54020519,2518.0,2517.9,0.040148]
[1751705034357,28.53998211,2518.0,2517.9,0.040148]
[1751705037268,29.1272029,2518.0,2517.9,0.040148]
[1751705038155,59.1272029,2518.0,2517.9,0.040148]
[1751705040232,29.12699374,2518.0,2517.9,0.040148]
[1751705044349,19.15174275,2518.0,2517.9,0.040148]
[1751705044551,29.13774275,2518.0,2517.9,0.040148]
[1751705046472,28.54952196,2518.0,2517.9,0.040148]
[1751705048172,28.54944035,2518.0,2517.9,0.040148]
[1751705049972,28.17945279,2518.0,2517.9,0.040148]
[1751705050180,28.54950931,2518.0,2517.9,0.040148]
[1751705051584,18.01450931,2518.0,2517.9,0.040148]
[1751705051786,27.99950931,2518.0,2517.9,0.040148]
[1751705053904,27.99968115,2518.0,2517.9,0.040148]
[1751705058492,28.54968115,2518.0,2517.9,0.040148]
[1751705059165,28.17945279,2518.0,2517.9,0.040148]
[1751705062001,28.17945279,2518.0,2517.4,0.0445872]
[1751705062002,3.97219463,2517.5,2517.4,0.0445872]
[1751705062299,13.97219463,2517.5,2517.4,0.0445872]
[1751705062902,14.34280569,2517.5,2517.4,0.0445872]
[1751705071712,16.29780569,2517.5,2517.4,0.0445872]
[1751705072214,16.29765591,2517.5,2517.4,0.0445872]
[1751705072510,14.34265591,2517.5,2517.4,0.0445872]
[1751705072915,16.29765591,2517.5,2517.4,0.0445872]
[1751705081245,16.29751801,2517.5,2517.4,0.0445872]
[1751705083962,16.29753325,2517.5,2517.4,0.0445872]
[1751705084107,14.34253325,2517.5,2517.4,0.0445872]
[1751705084302,0.37033862,2517.5,2517.4,0.0445872]
[1751705084505,0.37033862,2517.5,2517.4,0.8242872]
[1751705085027,4.34253325,2517.5,2517.4,0.8242872]
[1751705085223,0.37033862,2517.5,2517.4,0.8242872]
[1751705085424,4.34253325,2517.5,2517.4,0.8242872]
[1751705088750,4.34253325,2517.5,2517.4,0.7742872]
[1751705089961,3.97236671,2517.4,2516.9,4.0166505]
[1751705090156,3.97236671,2517.4,2517.0,0.79898827]
[1751705090157,0.37033862,2517.3,2517.0,0.79898827]
[1751705090364,0.37033862,2517.2,2517.0,0.79898827]
[1751705090532,0.37033862,2517.1,2517.0,0.79898827]
[1751705091970,0.37033862,2517.1,2517.0,0.8143]
[1751705092132,0.37033862,2517.1,2517.0,4.78728371]
[1751705092673,0.37033862,2517.1,2517.0,4.82701354]
[1751705092854,1.954,2517.6,2517.3,3.97247999]
[1751705093030,10.0,2517.9,2517.6,0.8143]
[1751705093234,0.37010676,2517.8,2517.6,4.78624538]
[1751705093459,11.954,2517.9,2517.6,5.66208594]
[1751705093460,0.37010676,2517.7,2517.6,5.66208594]
[1751705094832,0.37010676,2517.7,2517.6,5.61208594]
[1751705096450,0.37010676,2517.7,2517.6,1.64014056]
[1751705096871,0.37010676,2517.7,2517.6,1.59014056]
[1751705097078,0.37010676,2517.7,2517.6,0.7143]
[1751705099175,0.37010676,2517.7,2517.6,4.68633686]
[1751705100181,10.002,2518.0,2517.6,4.68633686]
[1751705100182,0.002,2518.0,2517.9,0.7884]
[1751705100348,0.002,2518.0,2517.9,12.7859636]
[1751705100544,0.002,2518.0,2517.9,6.83291722]
[1751705100757,0.002,2518.0,2517.9,14.86491722]
[1751705101378,0.002,2518.0,2517.9,6.83291722]
[1751705101557,0.002,2518.0,2517.9,9.0188]
[1751705101748,0.002,2518.0,2517.9,12.9903636]
[1751705102649,0.002,2518.0,2517.9,4.9583636]
[1751705103162,0.002,2518.0,2517.9,12.9913636]
[1751705110085,0.002,2518.0,2517.9,13.5413636]
[1751705110492,0.002,2518.0,2517.9,15.292671]
[1751705110692,0.002,2518.0,2517.9,7.259671]
[1751705110990,0.002,2518.0,2517.9,15.291671]
[1751705111187,0.002,2518.0,2517.9,6.709671]
[1751705111391,0.002,2518.0,2517.9,14.740671]
[1751705112664,0.002,2518.0,2517.9,6.709671]
[1751705112863,0.002,2518.0,2517.9,14.739671]
[1751705113273,0.002,2518.0,2517.9,15.289671]
[1751705113673,0.002,2518.0,2517.9,30.029671]
[1751705114359,0.002,2518.0,2517.9,30.035671]
[1751705115284,0.002,2518.0,2517.9,29.484671]
[1751705115483,0.002,2518.0,2517.9,21.449671]
[1751705115682,0.002,2518.0,2517.9,29.487671]